[Event "European Amateur-ch U2000 2019"]
[Site "Rhodes"]
[Date "2019.04.09"]
[Round "4.9"]
[White "Zanfir, Iulian"]
[Black "Mohnblatt, Nicolas"]
[Result "0-1"]
[ECO "D05"]
[WhiteElo "1699"]
[BlackElo "1685"]
[Annotator "NA"]
[PlyCount "174"]
[EventDate "2019.04.06"]
[EventType "swiss"]
[EventCountry "GRE"]
[SourceTitle "playchess.com"]
[Source "ChessBase"]
[SourceQuality "1"]
[TimeControl "40/5400+30:1800+30"]

1. d4 {[%emt 0:00:00]} Nf6 {[%emt 0:00:05]} 2. Nf3 {[%emt 0:00:00]} d5 {[%emt 0:00:00]} 3. e3 {[%emt 0:00:00]} c5 {[%emt 0:00:33]} 4. c3 {[%emt 0:00:00]} e6 {[%emt 0:00:57]} 5. Bd3 {[%emt 0:00:18]} Be7 {[%emt 0:00:20]} 6. Nbd2 {[%emt 0:00:08]} b6 {[%emt 0:00:11]} 7. Ne5 {[%emt 0:00:13]} O-O {[%emt 0:00:26]} 8. f4 {[%emt 0:00:30]} Ba6 {[%emt 0:00:27]} 9. Bxa6 {[%emt 0:02:14]} Nxa6 {[%emt 0:00:05]} 10. O-O {[%emt 0:03:23]} Qc7 {[%emt 0:05:00]} 11. Qf3 {[%emt 0:02:34]} Rad8 {[%emt 0:02:43]} 12. g4 {[%emt 0:02:23]} Nd7 {[%emt 0:02:15]} 13. Rf2 {[%emt 0:03:31]} f6 {[%emt 0:01:53]} 14. Nxd7 {[%emt 0:04:40]} Qxd7 {[%emt 0:00:25]} 15. Qg3 {[%emt 0:03:57]} Nb8 {[%emt 0:05:14]} 16. Nf3 {[%emt 0:03:51]} Nc6 {[%emt 0:01:50]} 17. h4 {[%emt 0:01:53]} Rde8 {[%emt 0:06:20]} 18. g5 {[%emt 0:06:45]} Bd6 {[%emt 0:06:40]} 19. gxf6 {[%emt 0:07:21]} Rxf6 {[%emt 0:00:10]} 20. h5 {[%emt 0:00:58]} Rf5 {[%emt 0:06:56]} 21. Qh3 {[%emt 0:05:51]} Ref8 {[%emt 0:03:12]} 22. Nh2 {[%emt 0:04:24]} Qf7 {[%emt 0:11:38]} 23. Ng4 {[%emt 0:02:47]} Rxh5 {[%emt 0:03:14]} 24. Qf3 {[%emt 0:01:26]} Ne7 {[%emt 0:02:57]} 25. Rg2 {[%emt 0:03:33]} Nf5 {[%emt 0:03:16]} 26. Nf6+ {[%emt 0:01:39]} Qxf6 {[%emt 0:02:32]} 27. Qxh5 {[%emt 0:00:11]} Qh4 {[%emt 0:08:22]} 28. Qxh4 {[%emt 0:03:02]} Nxh4 {[%emt 0:00:05]} 29. Rg4 {[%emt 0:01:57]} Nf5 {[%emt 0:00:22]} 30. Bd2 {[%emt 0:00:21]} Kf7 {[%emt 0:00:45]} 31. Kf2 {[%emt 0:02:50]} h5 {[%emt 0:00:52]} 32. Rg2 {[%emt 0:01:24]} Be7 {[%emt 0:01:34]} 33. Rh1 {[%emt 0:01:29]} Rh8 {[%emt 0:02:44]} 34. Be1 {[%emt 0:02:18]} Bh4+ {[%emt 0:01:36]} 35. Ke2 {[%emt 0:00:50]} Bxe1 {[%emt 0:00:45]} 36. Rxe1 {[%emt 0:00:27]} g6 {[%emt 0:05:47]} 37. Rh1 {[%emt 0:01:32]} Nd6 {[%emt 0:01:31]} 38. Kf3 {[%emt 0:01:13]} Ne4 {[%emt 0:00:28]} 39. Rhg1 {[%emt 0:03:49]} Rg8 {[%emt 0:00:09]} 40. Rh1 {[%emt 0:00:00]} c4 {[%emt 0:00:00]} 41. a4 {[%emt 0:01:32]} a5 {[%emt 0:01:17]} 42. Rhg1 {[%emt 0:02:00]} Kf6 {[%emt 0:00:30]} 43. Rb1 {[%emt 0:01:43]} Rc8 {[%emt 0:05:56]} 44. Rbg1 {[%emt 0:01:24]} Rg8 {[%emt 0:00:04]} 45. Rh1 {[%emt 0:00:18]} Rh8 {[%emt 0:01:02]} 46. Rb1 {[%emt 0:00:46]} Rc8 {[%emt 0:00:10]} 47. Rc2 {[%emt 0:00:35]} Kf7 {[%emt 0:02:23]} 48. b3 {[%emt 0:00:58]} Nd6 {[%emt 0:00:22]} 49. b4 {[%emt 0:01:33]} Ne4 {[%emt 0:03:29]} 50. bxa5 {[%emt 0:01:40]} bxa5 {[%emt 0:00:07]} 51. Rb5 {[%emt 0:02:45]} Ra8 {[%emt 0:00:26]} 52. Rb7+ {[%emt 0:07:56]} Kf6 {[%emt 0:02:19]} 53. Rc1 {[%emt 0:01:37]} Nd2+ {[%emt 0:00:40]} 54. Ke2 {[%emt 0:00:27]} Nb3 {[%emt 0:00:13]} 55. Rc2 {[%emt 0:02:47]} Rc8 {[%emt 0:07:00]} 56. Kf3 {[%emt 0:01:51]} Rf8 {[%emt 0:04:39]} 57. e4 {[%emt 0:01:40]} g5 {[%emt 0:01:51]} 58. e5+ {[%emt 0:01:17]} Kg6 {[%emt 0:00:34]} 59. Kg3 {[%emt 0:03:10]} h4+ {[%emt 0:00:47]} 60. Kg2 {[%emt 0:00:32]} Rxf4 {[%emt 0:02:15]} 61. Rf2 {[%emt 0:02:37]} Rxf2+ {[%emt 0:02:25]} 62. Kxf2 {[%emt 0:00:06]} Nd2 {[%emt 0:00:03]} 63. Ra7 {[%emt 0:00:36]} Ne4+ {[%emt 0:05:29]} 64. Kg2 {[%emt 0:00:48]} Nxc3 {[%emt 0:00:42]} 65. Rxa5 {[%emt 0:00:12]} Ne2 {[%emt 0:00:14]} 66. Ra8 {[%emt 0:00:58]} Nxd4 {[%emt 0:00:22]} 67. a5 {[%emt 0:00:16]} c3 {[%emt 0:02:51]} 68. a6 {[%emt 0:01:05]} Nb5 {[%emt 0:00:19]} 69. a7 {[%emt 0:01:09]} Nxa7 {[%emt 0:00:05]} 70. Rxa7 {[%emt 0:00:04]} Kf5 {[%emt 0:00:07]} 71. Rc7 {[%emt 0:00:23]} d4 {[%emt 0:00:05]} 72. Rc5 {[%emt 0:00:13]} Ke4 {[%emt 0:00:17]} 73. Kh3 {[%emt 0:00:24]} d3 {[%emt 0:00:30]} 74. Rxc3 {[%emt 0:00:30]} d2 {[%emt 0:00:07]} 75. Rc4+ {[%emt 0:01:03]} Kxe5 {[%emt 0:00:13]} 76. Rc5+ {[%emt 0:00:23]} Kd4 {[%emt 0:00:13]} 77. Rc8 {[%emt 0:00:07]} Ke3 {[%emt 0:00:17]} 78. Re8 {[%emt 0:04:13]} d1=Q {[%emt 0:00:12]} 79. Rxe6+ {[%emt 0:00:09]} Kf4 {[%emt 0:00:10]} 80. Rf6+ {[%emt 0:01:10]} Ke5 {[%emt 0:00:07]} 81. Rf2 {[%emt 0:00:32]} Qh1+ {[%emt 0:00:31]} 82. Rh2 {[%emt 0:00:26]} Qxh2+ {[%emt 0:00:18]} 83. Kxh2 {[%emt 0:00:05]} Kf4 {[%emt 0:00:07]} 84. Kg2 {[%emt 0:00:11]} Ke3 {[%emt 0:00:22]} 85. Kh2 {[%emt 0:00:40]} Kf2 {[%emt 0:00:08]} 86. Kh1 {[%emt 0:00:45]} g4 {[%emt 0:00:26]} 87. Kh2 {[%emt 0:00:16]} g3+ {[%emt 0:00:06]} 0-1

[Event "European Amateur-ch U2000 2019"]
[Site "Rhodes"]
[Date "2019.04.09"]
[Round "4.10"]
[White "Florea, Dorina"]
[Black "Jamba, Alexandru"]
[Result "1-0"]
[ECO "B45"]
[WhiteElo "1734"]
[BlackElo "1852"]
[Annotator "NA RC"]
[PlyCount "132"]
[EventDate "2019.04.06"]
[EventType "swiss"]
[EventCountry "GRE"]
[SourceTitle "playchess.com"]
[Source "ChessBase"]
[SourceQuality "1"]
[TimeControl "40/5400+30:1800+30"]

1. e4 c5 2. Nf3 Nc6 3. d4 cxd4 4. Nxd4 Nf6 5. Nc3 e6 6. Ndb5 Bb4 7. a3 Bxc3+ 8. Nxc3 d5 9. exd5 exd5 10. Bd3 O-O 11. O-O d4 12. Ne4 Bf5 13. Nc5 Bxd3 14. Nxd3 Re8 15. Bf4 Qd5 16. h3 Ne7 17. Ne5 Rad8 18. Qd3 Nc6 19. Nf3 Qe4 20. Qxe4 Rxe4 21. Bg5 Re2 22. Rac1 d3 23. cxd3 Rxd3 24. Rfe1 Rxb2 25. Ne5 Rxa3 26. Nxc6 bxc6 27. Rxc6 h6 28. Rc8+ Kh7 29. Bxf6 gxf6 30. Rc7 Raa2 31. Rxf7+ Kg6 32. Ree7 Rxf2 33. Rg7+ Kf5 34. Rxa7 Rxg2+ 35. Rxg2 Rxa7 36. Rg4 Ra2 37. Rb4 h5 38. Rb5+ Kg6 39. Rc5 f5 40. Rc4 Re2 41. Ra4 Re4 42. Ra2 Kg5 43. Ra8 Re2 44. Rf8 Kf4 45. Rg8 h4 46. Rg7 Re3 47. Kh2 Kf3 48. Rg5 Re2+ 49. Kh1 f4 50. Rg4 Re4 51. Kg1 Re1+ 52. Kh2 Re2+ 53. Kg1 Ra2 54. Rxh4 Ra1+ 55. Kh2 Ke3 56. Rh8 f3 57. Re8+ Kf2 58. Rf8 Ke2 59. Re8+ Kf1 60. h4 f2 61. Re7 Re1 62. Ra7 Ke2 63. Re7+ Kd3 64. Rd7+ Ke4 65. Re7+ Kd5 66. Rf7 f1=Q 1-0

[Event "European Amateur-ch U2000 2019"]
[Site "Rhodes"]
[Date "2019.04.10"]
[Round "5.1"]
[White "Ruzic, Pia Marie"]
[Black "Jamba, Alexandru"]
[Result "1/2-1/2"]
[ECO "A29"]
[WhiteElo "1800"]
[BlackElo "1852"]
[Annotator "NA"]
[PlyCount "64"]
[EventDate "2019.04.06"]
[EventType "swiss"]
[EventCountry "GRE"]
[SourceTitle "playchess.com"]
[Source "ChessBase"]
[SourceQuality "1"]
[TimeControl "40/5400+30:1800+30"]

1. Nf3 {[%emt 0:00:00]} Nc6 {[%emt 0:01:25]} 2. c4 {[%emt 0:00:34]} e5 {[%emt 0:00:16]} 3. Nc3 {[%emt 0:00:04]} Nf6 {[%emt 0:00:13]} 4. g3 {[%emt 0:00:19]} Bc5 {[%emt 0:02:50]} 5. Bg2 {[%emt 0:00:13]} d6 {[%emt 0:00:10]} 6. O-O {[%emt 0:00:33]} O-O {[%emt 0:00:08]} 7. d3 {[%emt 0:00:32]} h6 {[%emt 0:00:24]} 8. a3 {[%emt 0:01:09]} a5 {[%emt 0:00:38]} 9. b3 {[%emt 0:02:59] A29: English Opening: Four Knights Variation with 4 g3} (9. e3 Re8 10. b3 Ba7 11. Bb2 Bf5 12. h3 Qd7 13. Kh2 Bh7 14. Rc1 Ne7 15. d4 e4 16. Ne5 Qc8 17. Ng4 Nxg4+ 18. hxg4 {1-0 (57) Navara,D (2732)-Balogh,C (2632) Czech Republic 2018}) 9... Bf5 {[%emt 0:02:15]} 10. Bb2 {[%emt 0:03:08]} Qd7 {[%emt 0:06:24]} 11. e3 {[%emt 0:09:17]} e4 $146 {[%emt 0:02:50]} ({Predecessor:} 11... Rfe8 12. Nd5 Nxd5 13. cxd5 {½-½ (51) Loeschnauer,R (2465)-Peuraniemi,P (2440) ICCF email 2012}) 12. dxe4 {[%emt 0:23:16]} Nxe4 {[%emt 0:01:31]} 13. Nxe4 {[%emt 0:01:56]} Bxe4 {[%emt 0:00:10]} 14. Qd2 {[%emt 0:02:01]} Rfe8 {[%emt 0:07:54]} 15. Rad1 {[%emt 0:03:03]} Qe7 {[%emt 0:08:39]} 16. Rfe1 {[%emt 0:02:16]} Rad8 {[%emt 0:00:23]} 17. Qc3 {[%emt 0:08:24]} f6 {[%emt 0:04:38]} 18. Nd4 {[%emt 0:01:26]} Bxg2 {[%emt 0:00:44]} 19. Kxg2 {[%emt 0:00:04]} Qe4+ {[%emt 0:08:31]} 20. f3 {[%emt 0:00:08]} Bxd4 {[%emt 0:00:41]} 21. exd4 $11 {[%emt 0:04:03]} ({Much weaker is} 21. fxe4 Bxc3 22. Bxc3 a4 $17) 21... Qf5 {[%emt 0:00:41]} 22. d5 {[%emt 0:05:41]} Ne5 {[%emt 0:02:29]} 23. Re3 {[%emt 0:02:19]} b6 {[%emt 0:05:11]} 24. Rde1 {[%emt 0:00:43]} Kf7 {[%emt 0:00:06]} 25. R1e2 {[%emt 0:06:14]} Nd3 {[%emt 0:12:46]} 26. b4 {[%emt 0:06:51]} Qg6 {[%emt 0:07:01]} 27. Kf1 {[%emt 0:01:56]} Rxe3 {[%emt 0:05:56]} 28. Rxe3 {[%emt 0:00:02]} Ne5 {[%emt 0:03:16]} 29. Qc1 {[%emt 0:04:00]} axb4 {[%emt 0:01:38]} 30. Bxe5 {[%emt 0:00:51]} fxe5 {[%emt 0:01:42]} 31. axb4 {[%emt 0:00:07]} Ra8 {[%emt 0:00:55]} 32. Qb2 {[%emt 0:04:44]} Qe6 {[%emt 0:02:28]} 1/2-1/2

[Event "European Amateur-ch U2000 2019"]
[Site "Rhodes"]
[Date "2019.04.10"]
[Round "5.2"]
[White "Demirbas, Emre"]
[Black "Bozinovic, Boban"]
[Result "1-0"]
[ECO "B76"]
[WhiteElo "1960"]
[BlackElo "1950"]
[Annotator "NA"]
[PlyCount "43"]
[EventDate "2019.04.06"]
[EventType "swiss"]
[EventCountry "GRE"]
[SourceTitle "playchess.com"]
[Source "ChessBase"]
[SourceQuality "1"]
[TimeControl "40/5400+30:1800+30"]

1. e4 {[%emt 0:00:00]} c5 {[%emt 0:00:00]} 2. Nf3 {[%emt 0:00:00]} d6 {[%emt 0:00:00]} 3. d4 {[%emt 0:00:00]} cxd4 4. Nxd4 {[%emt 0:00:00]} Nf6 {[%emt 0:00:05]} 5. Nc3 {[%emt 0:00:00]} g6 {[%emt 0:00:05]} 6. Be3 {[%emt 0:00:00]} Bg7 {[%emt 0:00:07]} 7. f3 {[%emt 0:00:00]} O-O {[%emt 0:00:09]} 8. Qd2 {[%emt 0:00:04]} Nc6 {[%emt 0:00:07]} 9. g4 {[%emt 0:01:46]} Nxd4 {[%emt 0:01:34]} 10. Bxd4 {[%emt 0:00:02]} Be6 {[%emt 0:00:11]} 11. h4 {[%emt 0:01:44]} Qa5 {[%emt 0:06:25]} 12. h5 {[%emt 0:01:03]} Rfc8 {[%emt 0:16:49]} 13. a3 {[%emt 0:00:10]} Rab8 {[%emt 0:12:25]} 14. Rh2 {[%emt 0:26:50]} a6 $14 {[%emt 0:11:38]} 15. h6 {[%emt 0:17:02]} Bh8 {[%emt 0:12:13]} 16. g5 {[%emt 0:00:01]} Nd7 {[%emt 0:00:08]} 17. Bxh8 {[%emt 0:00:04]} Kxh8 {[%emt 0:00:06]} 18. f4 {[%emt 0:00:53]} Qc5 {[%emt 0:06:02]} 19. O-O-O {[%emt 0:04:55]} b5 {[%emt 0:02:47]} 20. Bh3 {[%emt 0:02:04]} Nb6 {[%emt 0:14:51]} 21. Nd5 {[%emt 0:06:10]} Nc4 {[%emt 0:03:01]} 22. Qc3+ {[%emt 0:01:10]} 1-0

[Event "European Amateur-ch U2000 2019"]
[Site "Rhodes"]
[Date "2019.04.10"]
[Round "5.3"]
[White "Suliborski, Artur"]
[Black "Mihalache, Paul-Stelian"]
[Result "0-1"]
[ECO "B33"]
[WhiteElo "1926"]
[BlackElo "1830"]
[Annotator "NA"]
[PlyCount "60"]
[EventDate "2019.04.06"]
[EventType "swiss"]
[EventCountry "GRE"]
[SourceTitle "playchess.com"]
[Source "ChessBase"]
[SourceQuality "1"]
[TimeControl "40/5400+30:1800+30"]

1. e4 {[%emt 0:00:00]} c5 {[%emt 0:00:00]} 2. Nf3 {[%emt 0:00:00]} Nc6 {[%emt 0:00:00]} 3. d4 {[%emt 0:00:00]} cxd4 {[%emt 0:00:00]} 4. Nxd4 {[%emt 0:00:00]} Nf6 {[%emt 0:00:01]} 5. Nc3 {[%emt 0:00:00]} e5 {[%emt 0:00:22]} 6. Ndb5 {[%emt 0:00:00]} d6 {[%emt 0:00:07]} 7. Bg5 {[%emt 0:00:09]} a6 {[%emt 0:00:09]} 8. Na3 {[%emt 0:00:11]} b5 {[%emt 0:00:05]} 9. Bxf6 {[%emt 0:00:07]} gxf6 {[%emt 0:00:02]} 10. Nd5 {[%emt 0:00:08]} f5 {[%emt 0:00:13]} 11. Bxb5 {[%emt 0:00:14]} axb5 {[%emt 0:00:08]} 12. Nxb5 {[%emt 0:00:02]} Ra4 {[%emt 0:00:21]} 13. Nbc7+ {[%emt 0:00:07]} Kd7 {[%emt 0:00:07]} 14. O-O {[%emt 0:00:07]} Rg8 {[%emt 0:01:18] B33: Sicilian: Pelikan and Sveshnikov Variations} (14... Rxe4 15. Qh5 Ne7 16. Qxf7 Kc6 17. Rfd1 Nxd5 18. Nxd5 Qd7 19. Qh5 Ba6 20. Qh3 Kb7 21. a4 Ka7 22. Nf6 Qc6 23. Nxe4 Qxe4 {½-½ (48) Valsecchi,A (2510)-Krasenkow,M (2626) Gallipoli 2018}) 15. c4 {[%emt 0:05:56]} Rxc4 $146 {[%emt 0:05:41]} ({Predecessor:} 15... Qg5 16. g3 Rxc4 17. Na8 fxe4 18. Nab6+ Kd8 19. Nxc4 Nd4 20. f4 exf3 21. Qa4 Ne2+ 22. Kf2 Nxg3 {1-0 (30) Beerdsen,T (2447)-Hill,A (2192) Bruges 2017}) 16. Qb3 {[%emt 0:04:13]} Qg5 {[%emt 0:05:42]} ({Don't go for} 16... Rxe4 $2 17. Rac1 $18) 17. g3 {[%emt 0:00:11]} Rc5 $1 {[%emt 0:08:36]} ({Not} 17... Rxe4 $2 18. Rac1 $18) 18. f4 {[%emt 0:05:16]} exf4 {[%emt 0:05:39]} 19. Rxf4 {[%emt 0:00:36]} fxe4 {[%emt 0:17:21]} 20. Rxf7+ {[%emt 0:14:03]} Be7 {[%emt 0:01:01]} 21. Raf1 {[%emt 0:18:14] [#]} Rc1 $11 {[%emt 0:13:46]} (21... Rg7 $1 $17 {[%cal Rg7f7]} 22. Nf6+ {[%mdl 64] Double Attack} Kxc7 23. Rxg7 Qe5 24. Ne8+ Kd8) 22. Qb5 {[%emt 0:23:30]} Rxf1+ {[%emt 0:01:25]} 23. Qxf1 {[%emt 0:00:11]} h5 {[%emt 0:10:57]} 24. b4 {[%emt 0:03:14]} Rg7 {[%emt 0:04:25]} 25. b5 {[%emt 0:10:40]} Nd4 {[%emt 0:01:14]} 26. Rf2 {[%emt 0:08:10]} e3 {[%emt 0:04:08]} 27. Rb2 {[%emt 0:06:09]} Qe5 {[%emt 0:07:39]} 28. Qc4 {[%emt 0:01:01]} e2 {[%emt 0:04:19]} 29. Nb6+ {[%emt 0:01:17]} Kd8 {[%emt 0:00:09]} 30. Rxe2 {[%emt 0:00:33]} Nxe2+ {[%emt 0:00:19]} 0-1

[Event "European Amateur-ch U2000 2019"]
[Site "Rhodes"]
[Date "2019.04.10"]
[Round "5.4"]
[White "Frontzos, Ioannis"]
[Black "Kostov, Deyan Samuil"]
[Result "1/2-1/2"]
[ECO "B52"]
[WhiteElo "1504"]
[BlackElo "1830"]
[Annotator "NA"]
[PlyCount "69"]
[EventDate "2019.04.06"]
[EventType "swiss"]
[EventCountry "GRE"]
[SourceTitle "playchess.com"]
[Source "ChessBase"]
[SourceQuality "1"]
[TimeControl "40/5400+30:1800+30"]

1. e4 {[%emt 0:00:00]} c5 {[%emt 0:00:00]} 2. Nf3 {[%emt 0:00:00]} d6 {[%emt 0:00:00]} 3. Bb5+ {[%emt 0:00:08]} Bd7 {[%emt 0:00:20]} 4. Bxd7+ {[%emt 0:00:16]} Qxd7 {[%emt 0:00:19]} 5. c4 {[%emt 0:00:36]} Nc6 {[%emt 0:02:16]} 6. Nc3 {[%emt 0:02:47]} g6 {[%emt 0:03:22]} 7. d4 {[%emt 0:06:55]} cxd4 {[%emt 0:02:59]} 8. Nxd4 {[%emt 0:00:08]} Bg7 {[%emt 0:00:11]} 9. Be3 {[%emt 0:00:47]} Nf6 {[%emt 0:02:35]} 10. f3 {[%emt 0:01:07]} O-O {[%emt 0:04:14]} 11. O-O {[%emt 0:00:26]} Rac8 {[%emt 0:02:11]} 12. b3 {[%emt 0:02:48] LiveBook: 101 Games} Rfd8 {[%emt 0:04:41]} 13. Qd2 {[%emt 0:03:12] [#]} Nh5 $146 {[%emt 0:20:27] B52: Sicilian: Moscow Variation with 3...Bd7} ({Predecessor:} 13... e6 14. Rac1 d5 15. cxd5 exd5 16. Nxc6 Rxc6 17. Nxd5 Nxd5 18. exd5 Rd6 19. Rfd1 b6 20. Bf4 Rf6 21. Bg5 {1-0 (30) Drygalov,A (2481)-Jones,G (2682) St Petersburg 2018}) 14. Nxc6 {[%emt 0:06:37]} bxc6 {[%emt 0:03:06]} 15. Rad1 {[%emt 0:04:11]} Qc7 {[%emt 0:05:38]} 16. Ne2 {[%emt 0:06:51]} e6 {[%emt 0:04:39]} 17. Bd4 {[%emt 0:09:24]} Bxd4+ {[%emt 0:06:05]} 18. Qxd4 {[%emt 0:00:38]} e5 $11 {[%emt 0:01:32]} 19. Qe3 {[%emt 0:08:18]} Qb6 {[%emt 0:06:38]} 20. Qxb6 {[%emt 0:03:15]} axb6 {[%emt 0:00:30]} 21. a4 {[%emt 0:02:42]} Ng7 {[%emt 0:01:48]} 22. b4 {[%emt 0:04:05]} Ra8 {[%emt 0:03:53]} 23. Nc3 {[%emt 0:02:31]} Ne6 {[%emt 0:05:39]} 24. Ra1 {[%emt 0:03:16]} Nc7 {[%emt 0:02:54]} 25. Rfd1 {[%emt 0:03:34]} Kf8 {[%emt 0:01:02]} 26. b5 {[%emt 0:07:40]} c5 {[%emt 0:00:47]} 27. Ra2 {[%emt 0:07:51]} Ra7 {[%emt 0:02:00]} 28. Rda1 {[%emt 0:01:04]} Rda8 {[%emt 0:01:23]} 29. Kf2 {[%emt 0:03:43]} Ra5 {[%emt 0:01:24]} 30. Ke3 {[%emt 0:01:44]} Ke7 {[%emt 0:00:55]} 31. Nb1 {[%emt 0:01:31]} Ne6 {[%emt 0:00:25]} 32. Nc3 {[%emt 0:00:24]} Nc7 {[%emt 0:00:07]} 33. Nb1 {[%emt 0:00:09]} Ne6 {[%emt 0:00:04]} 34. Nd2 {[%emt 0:00:07]} Nd4 35. Nb1 {[%emt 0:00:02]} 1/2-1/2

[Event "European Amateur-ch U2000 2019"]
[Site "Rhodes"]
[Date "2019.04.10"]
[Round "5.5"]
[White "Nagy, Laszlo Bence"]
[Black "Minko, Olga"]
[Result "1/2-1/2"]
[ECO "D27"]
[WhiteElo "1978"]
[BlackElo "1833"]
[Annotator "NA"]
[PlyCount "141"]
[EventDate "2019.04.06"]
[EventType "swiss"]
[EventCountry "GRE"]
[SourceTitle "playchess.com"]
[Source "ChessBase"]
[SourceQuality "1"]
[TimeControl "40/5400+30:1800+30"]

1. d4 {[%emt 0:00:00]} d5 {[%emt 0:00:00]} 2. c4 {[%emt 0:00:00]} dxc4 {[%emt 0:00:00]} 3. Nf3 {[%emt 0:00:01]} Nf6 {[%emt 0:00:00]} 4. e3 {[%emt 0:00:07]} e6 {[%emt 0:00:08]} 5. Bxc4 {[%emt 0:00:22]} a6 {[%emt 0:00:12]} 6. a4 {[%emt 0:03:29]} c5 {[%emt 0:00:14]} 7. O-O {[%emt 0:00:35]} Nc6 {[%emt 0:00:45]} 8. Nc3 {[%emt 0:04:07]} cxd4 {[%emt 0:02:38]} 9. exd4 {[%emt 0:01:01]} Nb4 {[%emt 0:02:13]} 10. Bg5 {[%emt 0:02:29]} Be7 {[%emt 0:04:04]} 11. Bxf6 {[%emt 0:29:24] D27: Queen's Gambit Accepted: Classical main line: 7 e4!? and 7 a4} (11. Qb3 Nc6 12. Rad1 Nd5 13. Bxd5 Bxg5 14. Be4 Na5 15. Qc2 f5 16. Nxg5 Qxg5 17. Bf3 O-O 18. Qe2 Qf6 {0-1 (57) Li,B (2333)-Varga,Z (2470) Balatonlelle 2018}) 11... Bxf6 {[%emt 0:02:47]} 12. d5 $146 {[%emt 0:00:25]} ({Predecessor:} 12. Qb3 Be7 13. d5 Nxd5 14. Nxd5 exd5 15. Bxd5 f6 16. Rfe1 Kf8 17. Rad1 Qa5 18. Rxe7 Kxe7 19. Qa3+ Kd8 20. Bxb7+ Bd7 21. Bxa8 Qc7 22. Be4 Kc8 23. Qe3 Kb8 24. Rc1 Qa5 25. Qf4+ {1-0 (25) Pektas,G (1602)-Hakkakifard,P Istanbul 2018}) 12... Nxd5 {[%emt 0:26:01]} (12... Bxc3 $5 13. bxc3 Nxd5 $11) 13. Nxd5 {[%emt 0:01:54]} exd5 {[%emt 0:01:13]} 14. Re1+ {[%emt 0:02:29]} Be7 {[%emt 0:01:44]} 15. Bxd5 {[%emt 0:00:58]} O-O {[%emt 0:02:40]} 16. Qb3 {[%emt 0:00:34]} Bd6 {[%emt 0:03:04]} 17. Rad1 {[%emt 0:03:07]} Qf6 {[%emt 0:04:42]} 18. Bxf7+ {[%emt 0:05:34]} Qxf7 {[%emt 0:07:47]} 19. Qxf7+ {[%emt 0:00:23]} Rxf7 {[%emt 0:00:35]} 20. Rxd6 {[%emt 0:00:14]} Bg4 {[%emt 0:05:48]} 21. Ng5 $16 {[%emt 0:02:04]} Rc7 {[%emt 0:00:34]} 22. f3 {[%emt 0:01:20]} Bf5 {[%emt 0:02:37]} 23. Red1 {[%emt 0:00:45]} Rcc8 {[%emt 0:01:47]} 24. a5 {[%emt 0:02:01]} h6 {[%emt 0:00:52]} 25. Ne6 {[%emt 0:04:53]} Bxe6 {[%emt 0:02:42]} 26. Rxe6 {[%emt 0:00:05]} Rc5 {[%emt 0:00:16]} 27. b4 {[%emt 0:10:32]} Rb5 {[%emt 0:01:48]} 28. Rb6 {[%emt 0:00:18]} Rxb6 {[%emt 0:05:49]} 29. axb6 {[%emt 0:00:06]} Rc8 {[%emt 0:00:38]} 30. Rd7 {[%emt 0:02:53]} Rc4 {[%emt 0:03:19]} 31. Rxb7 {[%emt 0:08:15]} Rxb4 {[%emt 0:00:08]} 32. Kf2 {[%emt 0:00:40]} a5 {[%emt 0:00:24]} 33. g4 {[%emt 0:00:34]} a4 {[%emt 0:00:30]} 34. h4 {[%emt 0:01:13]} a3 {[%emt 0:00:17]} 35. h5 {[%emt 0:01:56]} a2 {[%emt 0:01:27]} 36. Ra7 {[%emt 0:00:08]} Rxb6 {[%emt 0:00:34]} 37. Rxa2 {[%emt 0:00:05]} Rb3 {[%emt 0:00:11]} 38. Ra5 {[%emt 0:00:41]} Rb6 {[%emt 0:03:12]} 39. Kg3 {[%emt 0:00:12]} Rf6 {[%emt 0:00:23]} 40. Ra4 {[%emt 0:00:00]} Kh7 {[%emt 0:00:00]} 41. Rf4 {[%emt 0:00:39]} Rb6 {[%emt 0:02:41]} 42. Rf7 {[%emt 0:00:40]} Kg8 {[%emt 0:00:07]} 43. Rf5 {[%emt 0:00:16]} Kh7 {[%emt 0:00:24]} 44. Re5 {[%emt 0:02:56]} Rf6 {[%emt 0:01:32]} 45. Kf2 {[%emt 0:00:18]} Rb6 {[%emt 0:01:49]} 46. Ke3 {[%emt 0:00:10]} Rb4 {[%emt 0:00:04]} 47. Re4 {[%emt 0:00:08]} Rb5 {[%emt 0:00:14]} 48. Kf4 {[%emt 0:00:11]} Rc5 {[%emt 0:01:01]} 49. Re5 {[%emt 0:00:30]} Rc4+ {[%emt 0:00:10]} 50. Kf5 {[%emt 0:00:11]} Rc7 {[%emt 0:00:43]} 51. f4 {[%emt 0:00:37]} Rf7+ {[%emt 0:00:14]} 52. Ke4 {[%emt 0:00:06]} Ra7 {[%emt 0:00:39]} 53. Re6 {[%emt 0:01:08]} Rf7 {[%emt 0:00:56]} 54. Re8 {[%emt 0:03:34]} Rf6 {[%emt 0:01:13]} 55. Re7 {[%emt 0:02:35]} Rb6 {[%emt 0:01:04]} 56. g5 {[%emt 0:06:27]} hxg5 {[%emt 0:00:31]} 57. fxg5 {[%emt 0:00:09]} Rb5 {[%emt 0:01:28]} 58. Kf4 {[%emt 0:00:32]} Rb4+ {[%emt 0:00:18]} 59. Kf5 {[%emt 0:00:33]} Rb5+ {[%emt 0:01:01]} 60. Re5 {[%emt 0:00:46]} Rb6 {[%emt 0:00:25]} 61. Kf4 {[%emt 0:03:09]} Rb4+ {[%emt 0:00:24]} 62. Re4 {[%emt 0:00:16]} Rb6 {[%emt 0:00:43]} 63. Kg4 {[%emt 0:00:23]} Ra6 {[%emt 0:01:13]} 64. Rb4 {[%emt 0:01:21]} Rc6 {[%emt 0:00:23]} 65. Rb8 {[%emt 0:04:31]} Rc4+ {[%emt 0:00:16]} 66. Kf5 {[%emt 0:00:32]} Rc5+ {[%emt 0:00:13]} 67. Kf4 {[%emt 0:00:41]} Rc4+ {[%emt 0:00:07]} 68. Kf3 {[%emt 0:00:23]} Rc5 {[%emt 0:00:33]} 69. Kf4 {[%emt 0:05:32]} Rc4+ {[%emt 0:00:25]} 70. Ke3 {[%emt 0:01:30]} Rc5 {[%emt 0:00:07]} 71. Ke4 {[%emt 0:00:16]} 1/2-1/2